Cogmind - Beta 10.2 @@@ ROGUE MODE // 2021.06.27 @ 17:58:03 Player: Mares Result: Escaped! Performance ------------- Evolutions (9) 4500 Regions Visited (28) 5600 Robots Destroyed (513) 2565 Value Destroyed (27310) 27310 Prototype IDs (56) 1120 Alien Tech Used (0) 0 Bonus (14175) 14175 TOTAL SCORE: 55270 Bonus ------- High Alert Combat Kills 5865 Follower Combat Kills 5137 Entered Garrisons 1800 Used RIF Installer 4500 Aligned with FarCom 300 Win 3000 Friendly Fire -6427 Cogmind --------- Core Integrity 658/1600 Matter 10/300 Energy 78/100 System Corruption 95% Temperature Cool (8) Movement Treading (190) Ox1 Location To Epsilon Eridani Parts ------- > --- POWER (2) -------- (None) > --- PROPULSION (4) --- Advanced Heavy Siege Treads > --- UTILITY (16) ----- High-capacity Storage Unit High-capacity Storage Unit High-capacity Storage Unit High-capacity Storage Unit Advanced Targeting Computer Advanced Armor Integrity Analyzer Relay Coupler [NC] (28) Relay Coupler [Sentry] (25) > --- WEAPON (3) ------- Latent Energy Streamer > --- INVENTORY (36) --- Advanced Heavy Siege Treads Advanced Heat Sink Advanced Force Booster Advanced Force Field Antimissile System System Shield Relay Coupler [NC] (37) Relay Coupler [Sentry] (25) Relay Coupler [Sentry] (25) Heavy Gauss Cannon Advanced Remote Datajack Advanced Remote Datajack Nanosword Nanosword Kinetic Spear Kinetic Spear Kinetic Spear Peak State ------------ > --- POWER ------------ Cooled Antimatter Reactor Reinforced Quantum Reactor > --- PROPULSION ------- Advanced Heavy Siege Treads Advanced Heavy Siege Treads > --- UTILITY ---------- Advanced Power Amplifier Advanced Heat Sink High-capacity Storage Unit High-capacity Storage Unit High-capacity Storage Unit High-capacity Storage Unit High-capacity Storage Unit Layered Heavy Armor Plating Advanced Force Field Improved Hacking Suite Advanced System Shield Relay Coupler [C] Relay Coupler [C] Relay Coupler [Sentry] Relay Coupler [Sentry] > --- WEAPON ----------- Latent Energy Streamer Nova Cannon Hypervelocity Railgun > --- INVENTORY -------- Particle Reactor Cooled Antimatter Reactor Cooled Antimatter Reactor Light Quantum Reactor Heavy Siege Treads Armored Heavy Treads Centrium Heavy Treads Advanced Heavy Siege Treads Advanced Heavy Siege Treads Advanced Heavy Siege Treads Advanced Launcher Guidance Computer Advanced Force Booster Improved Weapon Shielding Antimissile System Relay Coupler [NC] Relay Coupler [NC] Relay Coupler [Sentry] Relay Coupler [Sentry] Relay Coupler [Sentry] Heavy Proton Cannon Compact HERF Cannon Railgun Improved KE Penetrator Hypervelocity Railgun Hypervelocity Railgun Hypervelocity Railgun Compact Tesla Bomb Launcher Long-range Missile Launcher Hellfire Missile Launcher Advanced Remote Datajack Advanced Remote Datajack Nanosword Nanosword Kinetic Spear Kinetic Spear Kinetic Spear [Rating: 183] Favorites ----------- Power Particle Reactor Engine Light Angular Momentum Engine Power Core Light Nuclear Core Reactor Particle Reactor Propulsion Light Treads Treads Light Treads Leg Carbon-fiber Leg Wheel Compact Wheel Hover Unit Combat Airjet Utility High-capacity Storage Unit Device Improved Cooling System Storage High-capacity Storage Unit Processor Advanced Targeting Computer Hackware Relay Coupler [Sentry] Protection Medium Reactive Plating Weapon Hypervelocity Railgun Energy Gun High-powered Shock Rifle Energy Cannon Heavy Proton Cannon Ballistic Gun Hypervelocity Railgun Ballistic Cannon Linear Accelerator Launcher Compact Tesla Bomb Launcher Special Weapon Improved Remote Datajack Impact Weapon Hammer Slashing Weapon Nanosword Piercing Weapon Kinetic Spear Build | -11 -10 -10 -10 -9 -8 -8 -8 -8 -7 -7 -7 -7 -6 -6 -5 -5 -5 -5 -4 -4 -3 -3 -3 -3 -3 -2 -2 -1 ------- Run | Scr Mat Min Exi Min Mat Gar Mat Gar Fac Gar Fac Gar Fac Gar Fac Was Fac Gar Fac Gar Res Gar Res Arm Lab Res Gar Acc Slots Evolved 18 | . . . . . 4 . . . 2 . . . 2 . 2 . . . 2 . 2 . . . . 2 . 2 Power 1 | . . . . . . . . . . . . . . . . . . . . . . . . . . . . 1 Propulsion 2 | . . . . . 1 . . . 1 . . . . . . . . . . . . . . . . . . . Utility 14 | . . . . . 2 . . . 1 . . . 2 . 2 . . . 2 . 2 . . . . 2 . 1 Weapon 1 | . . . . . 1 . . . . . . . . . . . . . . . . . . . . . . . Parts Attached 693 | 7 11 1 3 4 30 9 11 12 23 17 15 20 17 14 22 10 6 34 45 26 43 25 31 65 . 10 33 149 Power 44 | 1 2 . . 1 . 1 . . 3 2 3 . 1 1 . 1 . . 2 1 2 1 1 6 . 1 . 14 Engine 8 | 1 2 . . . . 1 . . 1 1 1 . . 1 . . . . . . . . . . . . . . Core 8 | . . . . 1 . . . . 2 1 2 . 1 . . . . . . . . . . . . . . 1 Reactor 28 | . . . . . . . . . . . . . . . . 1 . . 2 1 2 1 1 6 . 1 . 13 Propulsion 75 | 2 2 . . 1 3 1 . 6 2 4 6 5 2 3 2 2 . 1 2 5 7 2 1 2 . . 3 11 Treads 68 | 2 2 . . . 3 1 . 3 . 4 6 5 2 2 2 2 . 1 2 5 7 2 1 2 . . 3 11 Leg 1 | . . . . . . . . . . . . . . 1 . . . . . . . . . . . . . . Wheel 1 | . . . . 1 . . . . . . . . . . . . . . . . . . . . . . . . Hover 5 | . . . . . . . . 3 2 . . . . . . . . . . . . . . . . . . . Flight . | . . . . . . . . . . . . . . . . . . . . . . . . . . . . . Utility 256 | 1 2 . 1 . 10 3 2 2 5 4 4 6 9 4 11 4 5 17 21 7 18 11 14 21 . 4 15 55 Device 97 | . . . . . 4 . 1 . 1 . 1 1 4 1 2 1 2 3 5 3 6 2 9 9 . 2 6 34 Storage 28 | 1 2 . 1 . 1 1 . 1 . . 2 1 . . 2 . . 2 1 1 2 1 1 4 . . 1 3 Processor 11 | . . . . . . . . . 1 . . . . . . . . . 2 . 1 1 1 . . . . 5 Hackware 56 | . . . . . . . . . 1 1 . 1 2 1 3 1 . 5 7 1 4 6 3 7 . 2 7 4 Protection 64 | . . . . . 5 2 1 1 2 3 1 3 3 2 4 2 3 7 6 2 5 1 . 1 . . 1 9 Artifact . | . . . . . . . . . . . . . . . . . . . . . . . . . . . . . Weapon 318 | 3 5 1 2 2 17 4 9 4 13 7 2 9 5 6 9 3 1 16 20 13 16 11 15 36 . 5 15 69 Energy Gun 45 | 2 . . . 1 5 . 2 . . 2 1 4 1 2 2 2 . 5 5 1 3 3 . . . . . 4 Energy Cannon 78 | . 3 . . . 4 2 1 2 4 . . 1 1 2 . . . 4 5 6 5 1 5 5 . . 8 19 Ballistic Gun 78 | 1 1 . 2 . 4 1 4 . 4 4 . 1 . 1 3 1 . . 4 3 4 2 4 13 . 2 4 15 Ballistic Cannon 5 | . . . . . . . . . . . . . . . . . . . . . . . . 4 . . . 1 Launcher 52 | . 1 1 . 1 3 1 1 2 2 1 . 3 2 1 . . . 1 2 2 1 2 1 4 . 1 2 17 Special Weapon 38 | . . . . . . . . . 3 . 1 . 1 . 4 . 1 6 4 1 3 3 2 3 . 1 1 4 Impact Weapon 2 | . . . . . 1 . 1 . . . . . . . . . . . . . . . . . . . . . Slashing Weapon 18 | . . . . . . . . . . . . . . . . . . . . . . . 3 5 . 1 . 9 Piercing Weapon 2 | . . . . . . . . . . . . . . . . . . . . . . . . 2 . . . . Special Melee Weapon . | . . . . . . . . . . . . . . . . . . . . . . . . . . . . . Unidentified Prototypes 33 | . . . . . 4 . 1 . 1 . . . 1 . 1 1 . . 5 . 3 . 2 3 . . 1 10 Parts Lost 125 | . 5 4 . . 5 . . . 4 7 . 7 1 6 . . . 4 6 11 2 . 1 6 . 2 5 49 Power 21 | . 1 1 . . . . . . 2 2 . . 1 . . . . . 2 1 . . . . . 1 . 10 Propulsion 17 | . 2 1 . . 1 . . . . . . 3 . 2 . . . . . 3 . . . . . . . 5 Utility 41 | . . . . . . . . . . 1 . . . 1 . . . 3 2 3 1 . 1 5 . 1 4 19 Weapon 46 | . 2 2 . . 4 . . . 2 4 . 4 . 3 . . . 1 2 4 1 . . 1 . . 1 15 Highest Loss Streak 15 | . 4 4 . . 3 . . . 2 7 . 4 1 3 . . . 2 2 5 1 . 1 2 . 1 4 15 Average Slot Usage (%) 90 | . 98 99 47 84 98 99 99 99 96 98 99 98 98 94 99 79 83 86 86 91 85 88 89 88 80 82 84 86 Engine 2 | . 13 13 . . . 5 9 9 5 . . 7 4 2 5 . . . . . . . . . . . . . Core 1 | . . . . 5 9 3 . . 1 6 6 . 1 3 . . . . . . . . . . . . . . Reactor 2 | . . . . . . . . . . . . . . . . 4 5 5 4 4 4 4 3 3 4 4 4 7 Treads 15 | . 27 28 14 14 22 27 27 26 . 23 30 29 26 25 23 12 11 10 10 13 9 9 9 9 9 8 8 7 Device 3 | . . . . . 4 . . . . . 5 5 2 5 7 . 3 3 4 4 3 4 4 2 4 7 7 7 Storage 25 | . 27 28 28 28 22 27 27 27 23 23 23 25 26 26 23 23 23 28 27 29 27 28 23 24 28 26 22 21 Hackware 13 | . . . . . . . . . 7 . . . 8 4 11 11 11 8 18 15 20 24 31 31 19 22 24 23 Protection 4 | . . . . . 9 8 8 9 6 6 2 7 6 6 7 7 8 9 3 6 3 1 . . . . 2 3 Energy Gun 4 | . 9 . . 1 6 12 4 . . 5 8 14 13 7 1 2 5 10 6 . 3 1 . . . . . . Energy Cannon 4 | . 5 16 . . 10 11 12 9 5 . . 1 . 6 3 . . 2 2 9 7 3 2 1 . . 6 3 Ballistic Gun 5 | . 11 . 4 14 8 . 9 12 8 14 9 2 . . 6 10 5 . 1 3 2 3 5 7 14 7 1 3 Launcher 1 | . . 10 . 12 . 2 . 5 3 . . 3 3 2 . . . . . 1 . . . . . 1 1 1 Special Weapon 1 | . . . . . . . . . 3 . 2 . 1 . 4 3 4 2 3 . . 3 1 1 . 2 2 . Naked Turns . | . . . . . . . . . . . . . . . . . . . . . . . . . . . . . Heaviest Build 276 | 11 45 45 49 57 84 91 95 95 97 103 124 130 149 146 168 187 187 206 200 212 221 205 206 242 216 245 248 276 Greatest Support 170 | 40 40 40 20 20 68 68 68 68 88 88 80 80 88 88 91 140 140 140 140 140 150 145 145 135 135 135 155 170 Greatest Overweight (x) 11 | . 11 1 2 3 4 1 1 4 3 4 1 2 1 2 1 1 1 2 1 2 3 2 1 1 1 1 1 2 Average Overweight (x) 1 | . . . 1 2 2 1 1 1 . . 1 1 1 1 1 1 1 1 1 1 1 1 1 1 1 1 1 . Largest Inventory Capacity 50 | 6 16 16 18 18 24 24 24 24 24 24 32 32 32 32 40 34 34 42 42 42 42 42 42 50 44 44 44 44 Average Capacity 34 | 5 15 16 16 18 20 24 24 24 24 24 25 27 32 32 32 34 34 36 42 42 42 42 42 42 44 44 44 43 Most Carried 44 | 6 16 16 17 18 24 24 24 24 24 24 26 32 32 32 34 34 34 42 42 42 42 42 42 44 42 44 44 44 Average Carried 33 | 4 13 15 16 16 19 23 23 23 23 23 25 26 31 30 32 33 33 35 41 41 41 41 41 41 42 39 42 41 Final Capacity 44 | 6 16 16 18 18 24 24 24 24 24 24 26 32 32 32 34 34 34 42 42 42 42 42 42 44 44 44 44 36 Final Carried 44 | 6 16 16 17 18 24 24 24 24 24 24 26 32 32 31 34 34 34 42 42 42 42 42 42 42 42 40 44 18 Class Distribution -------------------- 52% | Botlord-Mutant 10% | Mutant 7% | Botlord-Skirmisher 7% | Hauler-Mutant 4% | Scavenger-Mutant 4% | Botlord-Tank 3% | Hauler-Skirmisher 3% | Scavenger-Skirmisher 3% | Bothacker-Mutant Dominant Class ---------------- Mutant | -10/Materials Mutant | -10/Mines Mutant | -10/Exiles Mutant | -9/Mines Hauler-Skirmisher | -8/Materials Hauler-Mutant | -8/Garrison Hauler-Mutant | -8/Materials Hauler-Mutant | -8/Garrison Scavenger-Mutant | -7/Factory Scavenger-Mutant | -7/Garrison Scavenger-Mutant | -7/Factory Bothacker-Mutant | -7/Garrison Botlord-Mutant | -6/Factory Botlord-Mutant | -6/Garrison Botlord-Mutant | -5/Factory Botlord-Mutant | -5/Waste Botlord-Mutant | -5/Factory Botlord-Mutant | -5/Garrison Botlord-Mutant | -4/Factory Botlord-Mutant | -4/Garrison Botlord-Mutant | -3/Research Botlord-Mutant | -3/Garrison Botlord-Mutant | -3/Research Botlord-Mutant | -3/Armory Botlord-Tank | -3/Lab Botlord-Mutant | -2/Research Botlord-Mutant | -2/Garrison Botlord-Mutant | -1/Access Resources | -11 -10 -10 -10 -9 -8 -8 -8 -8 -7 -7 -7 -7 -6 -6 -5 -5 -5 -5 -4 -4 -3 -3 -3 -3 -3 -2 -2 -1 ----------- Run | Scr Mat Min Exi Min Mat Gar Mat Gar Fac Gar Fac Gar Fac Gar Fac Was Fac Gar Fac Gar Res Gar Res Arm Lab Res Gar Acc Matter Collected 18063 | 231 457 79 . 234 647 133 214 256 388 365 334 720 340 425 771 550 . 1081 757 727 745 629 330 2701 . 281 910 3758 Remotely . | . . . . . . . . . . . . . . . . . . . . . . . . . . . . . Salvage Created 27571 | 85 702 133 . 119 1482 343 363 364 665 374 184 1250 786 847 538 1111 70 868 1264 1448 2146 749 425 2335 . 380 655 7885 Parts 1227 | 3 50 16 . 13 77 27 28 27 40 18 10 43 40 25 32 19 2 37 38 41 88 34 15 136 . 16 27 325 Haulers Intercepted 14 | . 2 . . . 3 . . . 1 . . . 1 . 1 . . . 1 . 1 . . . . . . 4 Recyclers Shooed 12 | . . . . 2 . . . . . . . . 1 . 1 . . . 1 . 4 . 1 . . . . 2 Parts Field Recycled . | . . . . . . . . . . . . . . . . . . . . . . . . . . . . . Retrieved Matter . | . . . . . . . . . . . . . . . . . . . . . . . . . . . . . Parts Self-Destructed . | . . . . . . . . . . . . . . . . . . . . . . . . . . . . . Prevented . | . . . . . . . . . . . . . . . . . . . . . . . . . . . . . Kills | -11 -10 -10 -10 -9 -8 -8 -8 -8 -7 -7 -7 -7 -6 -6 -5 -5 -5 -5 -4 -4 -3 -3 -3 -3 -3 -2 -2 -1 ------- Run | Scr Mat Min Exi Min Mat Gar Mat Gar Fac Gar Fac Gar Fac Gar Fac Was Fac Gar Fac Gar Res Gar Res Arm Lab Res Gar Acc Combat Hostiles Destroyed 385 | . 11 14 . 8 22 10 8 7 14 9 3 26 8 17 3 4 2 19 12 19 17 11 1 38 . 3 9 90 Melee 2 | . . . . . . . . . . . . . . . . . . . . . . . . 1 . . . 1 Guns 138 | . 8 . . 1 9 3 4 2 4 4 2 15 1 4 3 4 2 9 5 1 9 3 . 25 . 1 4 15 Cannons 60 | . 2 4 . . 9 2 1 . 5 . . 1 . 3 . . . . 3 6 2 2 . 9 . . . 11 AOE 126 | . 1 10 . 7 4 5 3 5 5 5 . 8 5 6 . . . 9 2 4 1 5 . 3 . 1 3 34 Classes Destroyed 22 | 2 6 1 . 1 3 . 1 . 1 . . . 1 . . 1 . 3 . . 1 . . 1 . . . . Worker 19 | 1 2 1 . . 1 . 1 . . . 1 . 5 . . . . . . . 1 . . . . . . 6 Builder 20 | . 1 1 . . . . . . 1 . . . 3 . 1 . . . . . 1 . . . . . . 12 Tunneler 2 | . . . . . . . . . . . . . . . . . . . . . 1 . . . . . . 1 Hauler 14 | . 2 . . . 3 . . . 1 . . . 1 . 1 . . . 1 . 1 . . . . . . 4 Recycler 15 | 1 1 . . . 1 . . . 1 . . . 2 . 1 . . . 1 . 3 . . . . . . 4 Mechanic 2 | . . . . . . . 1 . . . . . . . . . . . . . . . . . . . . 1 Operator 13 | . 3 . . . 2 . 1 . 1 . 1 . 1 . 2 . . . . . 2 . . . . . . . Watcher 22 | . 2 . . . 4 . 2 . . . . . 2 . 1 . . . 1 . 1 . . 1 . . . 8 Swarmer 93 | . 3 11 . 7 3 4 4 4 4 3 . 7 3 . . . . 10 . . . 5 . 10 . . 5 10 Saboteur 3 | . . . . . . . . . . . . . . . . . . 1 . . . . . 1 . . . 1 Grunt 140 | . 8 . . 2 14 3 3 2 6 2 . 10 3 14 1 . . 7 2 16 4 5 3 4 . . 2 29 Brawler 7 | . . . . . . . . . . . . . . . . . . 1 . . . . . 1 . . . 5 Duelist 15 | . . . . . 1 . . . . . . 1 . 1 . . . 2 1 . . . . 3 . . . 6 Protector 2 | . . . . . . . . . . . . . 1 . . . . . . . . . . . . . . 1 Sentry 50 | . . . . . 3 3 1 . 3 3 2 8 . 2 . . . . 2 2 6 1 2 6 . . 1 5 Demolisher 2 | . . . . . . . . . . . . . . . . . . . . . . . . 1 . 1 . . Hunter 22 | . . . . . 1 . . 1 . . 1 . 1 . . . . . 4 . . . . . . 3 . 11 Programmer 62 | . . . . . . . . . 1 1 . . . . 2 . 2 . 4 1 9 2 . 12 . . . 28 Behemoth 4 | . . . . . . . . . . . . . . . . . . 1 . 1 . 1 . . . . 1 . Compactor 4 | . . . . . . . . . . . . . . . . 4 . . . . . . . . . . . . Zionite 1 | . . . . 1 . . . . . . . . . . . . . . . . . . . . . . . . Assembled 3 | . . 3 . . . . . . . . . . . . . . . . . . . . . . . . . . Thug 1 | . . . . . . . . . . . . . . . . 1 . . . . . . . . . . . . Best Kill Streak 11 | 1 6 6 . 4 3 4 5 4 6 4 3 9 10 5 2 1 2 4 2 6 4 4 1 6 . 2 2 11 Combat Bots Only 11 | . 4 5 . 4 3 4 2 4 5 4 2 9 4 5 1 1 2 4 2 6 3 4 1 6 . 2 2 11 Max Kills in Single Turn 4 | 1 2 3 . 2 2 4 2 2 4 2 1 4 3 2 1 1 1 3 1 2 3 3 1 2 . 2 2 4 Gunslinging 1 | . . . . . . . . . . . . 1 . . . . . . . . . . . 1 . . . . Exploded 4 | . 1 3 . 2 2 4 1 2 4 2 . 4 2 2 . . . 3 1 2 1 3 . 2 . 1 2 4 Melee 1 | . . . . . . . . . . . . . . . . . . . . . . . . 1 . . . 1 Uniques/NPCs Destroyed . | . . . . . . . . . . . . . . . . . . . . . . . . . . . . . Combat | -11 -10 -10 -10 -9 -8 -8 -8 -8 -7 -7 -7 -7 -6 -6 -5 -5 -5 -5 -4 -4 -3 -3 -3 -3 -3 -2 -2 -1 -------- Run | Scr Mat Min Exi Min Mat Gar Mat Gar Fac Gar Fac Gar Fac Gar Fac Was Fac Gar Fac Gar Res Gar Res Arm Lab Res Gar Acc Damage Taken 40374 | . 863 437 . 44 1056 161 456 341 1124 1070 200 1456 581 1214 138 40 533 1553 1671 2486 1493 651 181 4433 . 1269 2728 14195 Core 3114 | . 118 71 . 6 78 . 30 21 176 188 10 175 59 87 . . 55 93 46 172 88 13 . 511 . 77 98 942 Absorbed by Shields 6332 | . . . . . . . . . . . . 14 . . . . . . . . 219 238 135 844 . 260 187 4435 Reduced by Siege Mode 1674 | . . . . . . . . . . . . . . . . . 17 17 . 71 91 57 6 299 . 18 159 939 Core Remaining (%) 64 | 100 . . . 22 . . . 76 . . . 21 . 82 . . . 85 . 81 . . . . 52 . 87 41 Volleys Fired 1446 | 5 68 23 . 16 66 13 24 29 38 25 11 60 28 37 48 52 7 82 59 61 81 54 13 133 . 15 102 296 Largest 3 | 2 2 2 . 2 3 3 3 3 3 3 3 3 3 3 3 3 2 3 3 3 3 2 2 3 . 3 3 3 Hottest 335 | 70 112 86 . 50 140 129 186 130 130 106 188 188 156 210 328 286 103 211 256 335 282 188 162 230 . 120 191 247 Shots Fired 2600 | 10 122 27 . 21 171 24 46 59 82 50 25 137 45 63 71 96 14 146 104 119 155 76 27 310 . 22 138 440 Gun 1545 | 10 102 . . 12 98 11 15 22 49 43 24 112 35 32 48 89 13 115 57 42 84 25 13 247 . 11 38 198 Cannon 720 | . 5 17 . . 66 12 27 31 31 3 . 17 . 22 6 . . 7 28 65 62 26 13 51 . . 89 142 Launcher 229 | . 15 10 . 9 7 1 4 6 2 4 . 8 7 9 . . . 6 10 12 5 5 . 6 . 7 8 88 Special 106 | . . . . . . . . . . . 1 . 3 . 17 7 1 18 9 . 4 20 1 6 . 4 3 12 Kinetic 1053 | 5 58 . . 11 63 3 6 22 49 37 9 44 . 1 38 81 6 . 26 30 45 12 13 280 . 11 38 165 Thermal 466 | 3 44 . . . 10 5 9 31 31 3 15 37 . . 10 8 7 1 33 23 42 18 . 18 . . 54 64 Explosive 151 | . 15 10 . 9 7 1 4 6 2 4 . 8 7 9 . . . 6 . 6 5 5 . 3 . . 3 41 Electromagnetic 824 | 2 5 17 . 1 91 15 27 . . 6 . 48 35 53 6 . . 121 36 60 59 21 13 3 . 7 40 158 Robot Hit Streak 32 | 4 9 5 . 4 17 16 7 16 7 11 15 27 13 18 10 19 9 24 12 17 26 21 10 21 . 6 22 32 Robot Miss Streak 7 | 1 3 2 . 3 5 1 3 6 5 4 3 7 3 1 3 2 2 5 4 1 3 2 1 3 . 1 2 3 Penetration Max 2 | . . . . . 1 . . . . . . . . . 1 . . . 1 1 1 . 1 1 . . 1 2 Secondary Targets 18 | . 3 . . . . . . . . 1 . 3 . . . . . 1 1 . 2 2 . 5 . . . . Max Gunslinging Chain 1 | . 1 . . . . . . . . 1 . 1 . . . . . 1 1 . 1 1 . 1 . . . . Capacitor 12 | . . . . . . . . . . . . . . . . . . . . . . . . . . . 10 2 Shots Hit Robots 1856 | 7 69 14 . 13 118 13 35 48 53 42 25 111 25 51 46 74 12 101 71 85 121 49 21 230 . 14 68 340 Core Hits 1103 | 3 29 22 . 15 63 15 20 28 42 36 19 90 33 32 16 14 4 49 37 47 61 24 8 100 . 6 25 265 Critical Hits 118 | . . . . . 1 . 2 . . . . . . . . 5 . . 3 7 3 2 1 27 . 3 14 50 Critical Kills 32 | . . . . . 1 . . . . . . . . . . 1 . . 1 . 1 . . 10 . 1 2 15 Critical Parts Destroyed 62 | . . . . . . . 2 . . . . . . . . 1 . . 2 2 1 . 1 15 . 1 4 33 Melee Attacks 55 | . . . . . 1 . . . . . . . . . . . . . . . . . . 15 . 1 . 38 Impact 1 | . . . . . 1 . . . . . . . . . . . . . . . . . . . . . . . Slashing 49 | . . . . . . . . . . . . . . . . . . . . . . . . 10 . 1 . 38 Piercing 5 | . . . . . . . . . . . . . . . . . . . . . . . . 5 . . . . Sneak Attacks 2 | . . . . . . . . . . . . . . . . . . . . . . . . . . . . 2 Combat Hostiles . | . . . . . . . . . . . . . . . . . . . . . . . . . . . . . Follow-up Attacks . | . . . . . . . . . . . . . . . . . . . . . . . . . . . . . Damage Inflicted 69031 | 97 995 956 . 583 2829 586 937 1337 1703 1023 520 3342 1815 2613 1040 1717 323 2599 2294 4493 4475 2095 850 5337 . 627 2006 21839 Guns 22580 | 97 752 . . 73 1092 171 177 196 633 592 520 2116 656 593 888 1717 323 909 1035 910 2407 412 401 3449 . 71 217 2173 Cannons 15585 | . 92 202 . . 1127 86 485 670 589 27 . 271 . 559 118 . . 52 615 1886 1459 611 387 1153 . . 1019 4177 Explosions 29805 | . 151 748 . 498 601 329 275 471 481 404 . 955 1094 1461 . . . 1630 644 1697 593 1072 . 687 . 556 770 14688 Melee 774 | . . . . . . . . . . . . . . . . . . . . . . . . 48 . . . 726 Ramming 287 | . . 6 . 12 9 . . . . . . . 65 . 34 . . 8 . . 16 . 62 . . . . 75 Kinetic 15275 | 34 377 . . 63 725 40 47 196 633 533 136 970 . . 661 1630 157 . 468 597 1215 97 401 4142 . 71 217 1865 Thermal 11390 | 38 375 . . . 307 119 344 670 589 27 384 665 . 138 227 87 166 298 814 909 1230 439 . 460 . . 575 2529 Explosive 20225 | . 151 748 . 498 420 210 119 471 481 404 . 955 1094 1323 . . . 1353 . 952 593 1072 . 467 . . 388 8526 Electromagnetic 21080 | 25 92 202 . 10 1368 217 427 . . 59 . 752 656 1152 118 . . 940 1012 2035 1421 487 387 220 . 556 826 8118 Impact . | . . . . . . . . . . . . . . . . . . . . . . . . . . . . . Slashing 774 | . . . . . . . . . . . . . . . . . . . . . . . . 48 . . . 726 Piercing . | . . . . . . . . . . . . . . . . . . . . . . . . . . . . . Highest Corruption 95 | . 11 11 11 11 . . . . 4 4 4 4 . . 1 13 14 18 8 9 8 8 10 28 28 . 22 95 Average Corruption 16 | . 11 11 11 11 . . . . 3 4 4 4 . . 1 11 13 17 3 8 4 8 8 18 28 . 21 41 Corruption Purged . | . . . . . . . . . . . . . . . . . . . . . . . . . . . . . Effects 1516 | . 14 31 22 61 . . . . 4 20 11 36 . . . 47 18 131 19 64 20 66 47 226 47 . 103 529 Message Errors 222 | . 2 4 8 11 . . . . 1 5 3 9 . . . 5 . 19 7 8 5 12 13 32 17 . 9 52 Matter Fused 217 | . 2 5 2 9 . . . . 3 3 3 6 . . . 9 3 24 1 13 3 15 5 30 11 . 19 51 Heat Flow Errors 117 | . 3 . 2 7 . . . . . 2 1 4 . . . 3 3 14 . 8 1 7 8 18 8 . 6 22 Energy Discharges 114 | . 1 1 3 7 . . . . . 3 1 6 . . . 2 3 10 2 9 1 7 5 12 3 . 15 23 Parts Rejected 12 | . 1 . . . . . . . . . . 1 . . . . . 2 1 2 . . . 1 . . . 4 Data Loss (minor) 114 | . 1 3 4 6 . . . . . 3 2 4 . . . 5 3 6 . 7 1 9 7 11 3 . 7 32 Data Loss (major) 43 | . . 2 . 4 . . . . . . . . . . . 3 . 3 . 3 1 3 2 10 3 . 2 7 Misfires 37 | . 1 3 . 2 . . . . . . . . . . . 3 1 2 . 2 1 4 3 7 . . 4 4 Alerts 20 | . . 1 . 1 . . . . . . . . . . . . . 1 . . . . . 4 2 . 1 10 Misdirections 140 | . 2 6 3 7 . . . . . . . . . . . 6 1 19 . . . . . 25 . . 15 56 Targeting Errors 401 | . 1 5 . 6 . . . . . 2 1 5 . . . 8 4 24 5 10 7 8 3 63 . . 19 230 Weapon Failures 79 | . . 1 . 1 . . . . . 2 . 1 . . . 3 . 7 3 2 . 1 1 13 . . 6 38 Overload Shots 15 | . . . . . . . . . . . . . . . 8 3 . . . 4 . . . . . . . . Overflow Damage 1803 | . . 57 . 30 67 . 4 37 . . . 15 45 12 13 . . 76 70 126 135 38 14 31 . . 36 997 Projectiles 406 | . . 16 . . 67 . 3 . . . . . . 7 13 . . . 54 . 33 1 2 3 . . 24 183 Explosions 1190 | . . 41 . 30 . . 1 37 . . . 15 37 5 . . . 76 16 126 102 37 . 28 . . 12 627 Melee 207 | . . . . . . . . . . . . . 8 . . . . . . . . . 12 . . . . 187 Knockbacks 11 | . . . . . . . . . . . . . . . . . . . . . . . 1 4 . . . 6 Impact 1 | . . . . . . . . . . . . . . . . . . . . . . . 1 . . . . . Kinetic 10 | . . . . . . . . . . . . . . . . . . . . . . . . 4 . . . 6 Secondary . | . . . . . . . . . . . . . . . . . . . . . . . . . . . . . Self-Inflicted Damage 1947 | . 69 102 . 9 52 43 27 79 85 . . 76 206 . . . . 25 17 124 46 12 . 86 . 48 32 809 Shots 58 | . 1 3 . 1 2 1 1 3 1 . . 2 3 . . . . 1 3 3 2 1 . 3 . 2 2 23 Rammed 18 | . . 1 . 4 . . . . . . . . 3 . 1 . . 1 . . 2 . 3 . . . . 3 Targets Rammed 20 | . . 1 . 4 1 . . . . . . . 4 . 1 . . 1 . . 2 . 3 . . . . 3 Kicked . | . . . . . . . . . . . . . . . . . . . . . . . . . . . . . Crushed 2 | . . . . . 1 . . . . . . . 1 . . . . . . . . . . . . . . . Highest Temperature 595 | 18 276 112 199 173 187 153 339 288 388 153 229 208 225 66 153 410 234 402 286 525 558 355 254 595 234 54 324 452 Average Temperature 92 | 9 42 35 88 57 44 47 116 108 146 51 55 45 60 25 58 101 88 103 64 118 159 95 95 104 100 24 79 104 Received Heat Transfer 4549 | . 210 . . 12 432 45 144 27 330 300 54 381 66 522 45 18 . 300 123 378 90 86 13 121 . . 322 530 Effects 41 | . . . . . . . 4 . 2 . . . . . . 2 . . . 3 7 . 3 15 . . . 5 Shutdowns 5 | . . . . . . . . . 1 . . . . . . 1 . . . 1 1 . . 1 . . . . Energy Bleed 9 | . . . . . . . 2 . . . . . . . . . . . . 2 3 . . . . . . 2 Interference 15 | . . . . . . . . . 1 . . . . . . . . . . . 1 . 3 7 . . . 3 Matter Decay 4 | . . . . . . . 1 . . . . . . . . 1 . . . . 1 . . 1 . . . . Damage (minor) 3 | . . . . . . . 1 . . . . . . . . . . . . . 1 . . 1 . . . . Damage (major) 4 | . . . . . . . . . . . . . . . . . . . . . . . . 4 . . . . Damage (core) 1 | . . . . . . . . . . . . . . . . . . . . . . . . 1 . . . . Siege Activations 45 | . . . . . . . . . . . . . . . . . 1 2 . 4 6 2 1 9 . 1 2 17 Total Turns 874 | . . . . . . . . . . . . . . . . . 11 23 . 62 109 41 8 167 . 12 41 400 Longest Duration 58 | . . . . . . . . . . . . . . . . . 11 13 . 23 53 23 8 38 . 12 29 58 Robots Corrupted 66 | . . . . . 1 . . . . . . 3 2 4 . . . 1 2 8 6 1 2 . . 2 2 32 Combat Hostiles 57 | . . . . . . . . . . . . 2 2 4 . . . 1 2 8 5 1 1 . . 1 2 28 Parts Fried 143 | . . . . . 6 . 2 . . . . 5 7 5 1 . . 3 7 14 11 2 3 . . 2 6 69 Impact Corruptions 2 | . . . . . . . . . . . . . 1 . . . . . . . . . 1 . . . . . Robots Melted 1 | . . . . . . . . . . . 1 . . . . . . . . . . . . . . . . . Combat Hostiles 1 | . . . . . . . . . . . 1 . . . . . . . . . . . . . . . . . Parts Melted 22 | . 1 . . . . . . . 1 . 1 . . . 1 . . . 1 1 6 1 . 2 . . . 7 Heat Transferred 13354 | 111 1110 . . . 372 150 459 925 814 37 875 1270 . 100 200 148 259 337 817 710 1357 481 . 346 . . 350 2126 Parts Sabotaged 11 | . . . . . . . . . . . . . . . . . . 1 . . . . . 10 . . . . Parts Stolen . | . . . . . . . . . . . . . . . . . . . . . . . . . . . . . Parts Stripped . | . . . . . . . . . . . . . . . . . . . . . . . . . . . . . Power Chain Reactions 18 | . . . . . 2 1 2 . . . . . . 1 . . . 4 . 1 . . . . . . 1 6 Missiles Intercepted . | . . . . . . . . . . . . . . . . . . . . . . . . . . . . . Latent Energy Used 1476 | . . . . . . . . . . . . . . . . . . . . . . . . . . . 117 1359 LE Corruption 30 | . . . . . . . . . . . . . . . . . . . . . . . . . . . 5 25 Alert | -11 -10 -10 -10 -9 -8 -8 -8 -8 -7 -7 -7 -7 -6 -6 -5 -5 -5 -5 -4 -4 -3 -3 -3 -3 -3 -2 -2 -1 ------- Run | Scr Mat Min Exi Min Mat Gar Mat Gar Fac Gar Fac Gar Fac Gar Fac Was Fac Gar Fac Gar Res Gar Res Arm Lab Res Gar Acc Peak Influence 2622 | 10 268 353 . 189 582 632 488 331 858 800 435 971 599 870 456 46 50 957 669 919 531 959 570 1113 . 147 1082 2622 Initial 648 | . 6 18 . . 73 378 308 97 173 600 420 266 509 333 456 38 2 35 501 198 516 191 539 137 . . 102 648 Average 464 | 2 81 162 . 93 395 522 279 225 567 743 369 661 466 594 144 23 13 577 389 505 156 703 251 446 . 52 697 810 Maximum Alert Level 5 | . 1 1 . . 2 2 2 1 3 3 2 3 2 3 2 . . 3 2 3 2 3 2 4 . . 3 5 Low Security (%) 25 | 100 89 53 . 100 5 . 32 35 5 . . . . . 88 100 100 10 11 3 64 1 40 26 . 100 2 3 Level 1 23 | . 10 46 . . 41 18 46 64 3 . 39 11 18 13 . . . 5 40 30 33 21 45 28 . . 23 26 Level 2 30 | . . . . . 53 81 20 . 66 11 60 44 81 53 11 . . 50 47 46 1 21 13 22 . . 20 30 Level 3 18 | . . . . . . . . . 24 88 . 44 . 33 . . . 33 . 20 . 54 . 22 . . 53 12 Level 4 1 | . . . . . . . . . . . . . . . . . . . . . . . . . . . . 11 Level 5 1 | . . . . . . . . . . . . . . . . . . . . . . . . . . . . 14 High Security . | . . . . . . . . . . . . . . . . . . . . . . . . . . . . . Max Security . | . . . . . . . . . . . . . . . . . . . . . . . . . . . . . Squads Dispatched 105 | . 7 . . 1 5 . 2 . 5 . 2 . 4 . 7 . 1 . 8 . 8 . 2 11 . 4 . 38 Investigation 12 | . 3 . . . 3 . . . 4 . . . . . 1 . . . . . . . . . . . . 1 Extermination 27 | . . . . . . . . . . . . . 1 . 1 . 1 . 2 . 4 . 1 7 . . . 10 Reinforcement 36 | . 4 . . 1 2 . 2 . 1 . 1 . 2 . 3 . . . 2 . 3 . 1 1 . 2 . 11 Assault 14 | . . . . . . . . . . . . . 1 . 1 . . . . . . . . 3 . . . 9 Garrison 16 | . . . . . . . . . . . 1 . . . 1 . . . 4 . 1 . . . . 2 . 7 Intercept . | . . . . . . . . . . . . . . . . . . . . . . . . . . . . . Construction Impeded 11 | . . . . 1 1 . . . 1 . . . 1 . . . . . . . 1 . 1 . . 1 . 4 Haulers Reinforced 8 | . . . . . . . . . . . . . 1 . . . . . 1 . 1 . . . . . . 5 Stealth | -11 -10 -10 -10 -9 -8 -8 -8 -8 -7 -7 -7 -7 -6 -6 -5 -5 -5 -5 -4 -4 -3 -3 -3 -3 -3 -2 -2 -1 --------- Run | Scr Mat Min Exi Min Mat Gar Mat Gar Fac Gar Fac Gar Fac Gar Fac Was Fac Gar Fac Gar Res Gar Res Arm Lab Res Gar Acc Distress Signals 19 | . 2 . . . 6 . 2 . 1 . . . . . . . . . 1 . 1 . . 3 . . . 3 Communications Jammed 63 | . . . . . . . . . . . . . . . 20 . 1 . . . . . . 42 . . . . Distress Signals 61 | . . . . . . . . . . . . . . . 19 . . . . . . . . 42 . . . . Times Spotted 778 | . 24 32 . 11 41 6 15 5 21 10 5 26 15 21 25 6 4 41 24 25 37 34 17 108 . 12 32 181 Peak Tracking Total 17 | . 4 17 . 4 5 3 3 2 4 7 1 5 5 5 4 3 2 7 3 4 4 7 6 8 . 3 5 13 Tactical Retreats 51 | . . 1 . . 4 . 1 . 3 . . 1 1 3 . . . 4 . 2 2 . 1 7 . . 5 16 Traps | -11 -10 -10 -10 -9 -8 -8 -8 -8 -7 -7 -7 -7 -6 -6 -5 -5 -5 -5 -4 -4 -3 -3 -3 -3 -3 -2 -2 -1 ------- Run | Scr Mat Min Exi Min Mat Gar Mat Gar Fac Gar Fac Gar Fac Gar Fac Was Fac Gar Fac Gar Res Gar Res Arm Lab Res Gar Acc Traps Triggered 76 | . . . . . . 1 . 2 1 4 3 7 . 6 2 . . 9 . 7 5 13 1 4 . . 6 5 Indirectly 2 | . . . . . . . . . . . . . . . . . . . . . . . . . . . . 2 Trap Hack Attempts . | . . . . . . . . . . . . . . . . . . . . . . . . . . . . . Triggered . | . . . . . . . . . . . . . . . . . . . . . . . . . . . . . Disarmed . | . . . . . . . . . . . . . . . . . . . . . . . . . . . . . Reprogrammed 4 | . . . . . . . . . . . . . . . 4 . . . . . . . . . . . . . Reused 2 | . . . . . . . . . . . . . . . 2 . . . . . . . . . . . . . Traps Extracted . | . . . . . . . . . . . . . . . . . . . . . . . . . . . . . Installed . | . . . . . . . . . . . . . . . . . . . . . . . . . . . . . Triggered 3 | . . . . . 1 . . . . . . . . . 2 . . . . . . . . . . . . . Machines | -11 -10 -10 -10 -9 -8 -8 -8 -8 -7 -7 -7 -7 -6 -6 -5 -5 -5 -5 -4 -4 -3 -3 -3 -3 -3 -2 -2 -1 ---------- Run | Scr Mat Min Exi Min Mat Gar Mat Gar Fac Gar Fac Gar Fac Gar Fac Was Fac Gar Fac Gar Res Gar Res Arm Lab Res Gar Acc Machines Disabled 92 | . 3 2 . 5 2 1 . 1 17 1 . 2 5 2 5 . . 4 5 6 . 3 . 11 . 1 5 11 Max in Single Turn 5 | . 2 1 . 3 1 1 . 1 5 1 . 1 5 1 1 . . 1 1 1 . 1 . 1 . 1 1 2 Garrison Access 5 | . . . . . . . . . . . 1 . . . 1 . . . . . 1 . 1 . . . . 1 Garrison Relay 21 | . . . . . . 1 . . . 1 . 2 . 2 . . . 4 . 4 . 3 . . . . 4 . Machines Sabotaged . | . . . . . . . . . . . . . . . . . . . . . . . . . . . . . Garrisons Compromised . | . . . . . . . . . . . . . . . . . . . . . . . . . . . . . Overloaded Fab Kills . | . . . . . . . . . . . . . . . . . . . . . . . . . . . . . Fab Network Shutdowns . | . . . . . . . . . . . . . . . . . . . . . . . . . . . . . Hacking | -11 -10 -10 -10 -9 -8 -8 -8 -8 -7 -7 -7 -7 -6 -6 -5 -5 -5 -5 -4 -4 -3 -3 -3 -3 -3 -2 -2 -1 --------- Run | Scr Mat Min Exi Min Mat Gar Mat Gar Fac Gar Fac Gar Fac Gar Fac Was Fac Gar Fac Gar Res Gar Res Arm Lab Res Gar Acc Machines Accessed 74 | . 5 1 1 . 8 . 2 . 8 . 2 . 5 . 4 . 1 . 5 . 5 . 6 12 . 2 . 7 Terminals 42 | . 3 1 . . 5 . . . 4 . . . 3 . 2 . . . 4 . 2 . 3 9 . 1 . 5 Fabricators 5 | . . . . . . . . . 1 . . . . . 1 . . . . . . . . 2 . . . 1 Repair Stations 4 | . . . . . . . 1 . 1 . . . 1 . . . . . . . . . 1 . . . . . Recycling Units 7 | . 2 . . . 2 . . . 1 . . . . . . . . . . . 1 . . 1 . . . . Scanalyzers 2 | . . . . . . . . . . . . . . . 1 . . . . . . . 1 . . . . . Garrison Access 13 | . . . . . 1 . 1 . 1 . 2 . 1 . . . 1 . 1 . 2 . 1 . . 1 . 1 Total Hacks 177 | . 11 2 1 . 16 . 5 . 21 . 2 . 13 . 13 . 1 . 13 . 10 . 21 33 . 3 . 12 Successful 83 | . 6 1 1 . 8 . 3 . 6 . 2 . 7 . 9 . 1 . 3 . 4 . 10 17 . 1 . 4 Failed 94 | . 5 1 . . 8 . 2 . 15 . . . 6 . 4 . . . 10 . 6 . 11 16 . 2 . 8 Catastrophic 21 | . . . . . . . . . 3 . . . 1 . . . . . 5 . . . 5 4 . . . 3 Database Lockouts . | . . . . . . . . . . . . . . . . . . . . . . . . . . . . . Manual 60 | . 7 . 1 . 13 . . . 7 . . . 5 . 4 . . . 7 . . . 5 7 . . . 4 Terminals 112 | . 9 2 . . 12 . . . 15 . . . 9 . 6 . . . 12 . 5 . 10 20 . 2 . 10 Fabricators 17 | . . . . . . . . . 2 . . . . . 4 . . . . . . . . 10 . . . 1 Repair Stations 12 | . . . . . . . 4 . 2 . . . 3 . . . . . . . . . 3 . . . . . Recycling Units 11 | . 2 . . . 2 . . . 1 . . . . . . . . . . . 3 . . 3 . . . . Scanalyzers 10 | . . . . . . . . . . . . . . . 3 . . . . . . . 7 . . . . . Garrison Access 14 | . . . . . 2 . 1 . 1 . 2 . 1 . . . 1 . 1 . 2 . 1 . . 1 . 1 Terminal Hacks 34 | . 2 1 1 . 3 . . . 2 . . . 3 . 4 . . . 2 . 1 . 5 9 . . . 1 Record 2 | . . . . . . . . . . . . . . . . . . . . . 1 . . 1 . . . . Part Schematic 2 | . . . . . . . . . 1 . . . 1 . . . . . . . . . . . . . . . Robot Analysis 2 | . 1 . . . . . . . . . . . . . . . . . . . . . . 1 . . . . Open Door 2 | . . . . . . . . . . . . . . . . . . . . . . . . 2 . . . . Branch Access Points 1 | . . . . . . . . . . . . . . . . . . . . . . . 1 . . . . . Machine Index 1 | . . . . . . . . . . . . . . . . . . . . . . . . 1 . . . . Fabricator Index 1 | . . . . . . . . . . . . . . . 1 . . . . . . . . . . . . . Recycling Unit Index 1 | . 1 . . . . . . . . . . . . . . . . . . . . . . . . . . . Garrison Index 1 | . . . . . . . . . . . . . 1 . . . . . . . . . . . . . . . Alert Level 2 | . . . . . 1 . . . 1 . . . . . . . . . . . . . . . . . . . Unreport Threat 11 | . . . . . . . . . . . . . . . 2 . . . 2 . . . 4 2 . . . 1 Locate Traps 1 | . . . . . 1 . . . . . . . . . . . . . . . . . . . . . . . Reprogram Traps 1 | . . . . . . . . . . . . . . . 1 . . . . . . . . . . . . . Registered Components 2 | . . . . . . . . . . . . . 1 . . . . . . . . . . 1 . . . . Registered Prototypes 1 | . . . . . . . . . . . . . . . . . . . . . . . . 1 . . . . Zone Layout 2 | . . 1 . . 1 . . . . . . . . . . . . . . . . . . . . . . . EX-Prototype ID Bank 1 | . . . 1 . . . . . . . . . . . . . . . . . . . . . . . . . Fabricator Hacks 10 | . . . . . . . . . . . . . . . 3 . . . . . . . . 6 . . . 1 Load Schematic 4 | . . . . . . . . . . . . . . . 1 . . . . . . . . 3 . . . . Build 6 | . . . . . . . . . . . . . . . 2 . . . . . . . . 3 . . . 1 Repair Station Hacks 7 | . . . . . . . 2 . 2 . . . 2 . . . . . . . . . 1 . . . . . Scan Component 4 | . . . . . . . 1 . 1 . . . 1 . . . . . . . . . 1 . . . . . Repair 3 | . . . . . . . 1 . 1 . . . 1 . . . . . . . . . . . . . . . Recycling Unit Hacks 2 | . . . . . . . . . . . . . . . . . . . . . 1 . . 1 . . . . Retrieve Components 2 | . . . . . . . . . . . . . . . . . . . . . 1 . . 1 . . . . Scanalyzer 5 | . . . . . . . . . . . . . . . 2 . . . . . . . 3 . . . . . Insert Component 3 | . . . . . . . . . . . . . . . 1 . . . . . . . 2 . . . . . Analyze 2 | . . . . . . . . . . . . . . . 1 . . . . . . . 1 . . . . . Garrison Access Hacks 13 | . . . . . 1 . 1 . 1 . 2 . 1 . . . 1 . 1 . 2 . 1 . . 1 . 1 Unlock Access 9 | . . . . . 1 . 1 . 1 . 1 . 1 . . . 1 . 1 . 1 . . . . 1 . . Seal Access 4 | . . . . . . . . . . . 1 . . . . . . . . . 1 . 1 . . . . 1 Unauthorized Hacks 12 | . 4 . . . 4 . . . 1 . . . 1 . . . . . . . . . . 1 . . . 1 Terminals 6 | . 2 . . . 2 . . . . . . . 1 . . . . . . . . . . . . . . 1 Botnet 3 | . 1 . . . 1 . . . . . . . 1 . . . . . . . . . . . . . . . Operators 3 | . 1 . . . 1 . . . . . . . . . . . . . . . . . . . . . . 1 Fabricators 1 | . . . . . . . . . . . . . . . . . . . . . . . . 1 . . . . Prioritize 1 | . . . . . . . . . . . . . . . . . . . . . . . . 1 . . . . Repair Stations . | . . . . . . . . . . . . . . . . . . . . . . . . . . . . . Recycling Units 5 | . 2 . . . 2 . . . 1 . . . . . . . . . . . . . . . . . . . Tunnel 5 | . 2 . . . 2 . . . 1 . . . . . . . . . . . . . . . . . . . Scanalyzers . | . . . . . . . . . . . . . . . . . . . . . . . . . . . . . Garrison Access . | . . . . . . . . . . . . . . . . . . . . . . . . . . . . . Data Cores Recovered 1 | . . . . . 1 . . . . . . . . . . . . . . . . . . . . . . . Used . | . . . . . . . . . . . . . . . . . . . . . . . . . . . . . Hacking Detections 52 | . 3 . . . 3 . 1 . 7 . 1 . 4 . 4 . . . 4 . 3 . 5 9 . 2 . 6 Full Trace Events 4 | . . . . . . . . . 3 . . . . . 1 . . . . . . . . . . . . . Feedback Events . | . . . . . . . . . . . . . . . . . . . . . . . . . . . . . Feedback Blocked . | . . . . . . . . . . . . . . . . . . . . . . . . . . . . . Robot Schematics Acquired . | . . . . . . . . . . . . . . . . . . . . . . . . . . . . . Robots Built . | . . . . . . . . . . . . . . . . . . . . . . . . . . . . . Matter . | . . . . . . . . . . . . . . . . . . . . . . . . . . . . . Time . | . . . . . . . . . . . . . . . . . . . . . . . . . . . . . Total Robot Build Rating . | . . . . . . . . . . . . . . . . . . . . . . . . . . . . . Part Schematics Acquired 4 | . . . . . . . . . 1 . . . 1 . 1 . . . . . . . 1 . . . . . Parts Built 8 | . . . . . . . . . . . . . . . 2 . . . . . . . . 4 . . . 2 Matter 1191 | . . . . . . . . . . . . . . . 204 . . . . . . . . 709 . . . 278 Time 318 | . . . . . . . . . . . . . . . 102 . . . . . . . . 170 . . . 46 Total Part Build Rating 40 | . . . . . . . . . . . . . . . 2 . . . . . . . . 20 . . . 18 Parts Repaired 3 | . . . . . . . 1 . 1 . . . 1 . . . . . . . . . . . . . . . Time 79 | . . . . . . . 32 . 25 . . . 22 . . . . . . . . . . . . . . . Parts Recycled . | . . . . . . . . . . . . . . . . . . . . . . . . . . . . . Recycled Matter . | . . . . . . . . . . . . . . . . . . . . . . . . . . . . . Retrieved Matter . | . . . . . . . . . . . . . . . . . . . . . . . . . . . . . Retrieved Components 11 | . . . . . . . . . . . . . . . . . . . . . 10 . . 1 . . . . Parts Scanalyzed 2 | . . . . . . . . . . . . . . . 1 . . . . . . . 1 . . . . . Part Schematics Acquired 2 | . . . . . . . . . . . . . . . 1 . . . . . . . 1 . . . . . Parts Damaged . | . . . . . . . . . . . . . . . . . . . . . . . . . . . . . Bothacking | -11 -10 -10 -10 -9 -8 -8 -8 -8 -7 -7 -7 -7 -6 -6 -5 -5 -5 -5 -4 -4 -3 -3 -3 -3 -3 -2 -2 -1 ------------ Run | Scr Mat Min Exi Min Mat Gar Mat Gar Fac Gar Fac Gar Fac Gar Fac Was Fac Gar Fac Gar Res Gar Res Arm Lab Res Gar Acc Used RIF Installer 9 | . . . . . . 1 . 1 . 1 . 1 . 1 . . . 1 . 1 . 1 . . . . 1 . Hotswap 1 | . . . . . . . . 1 . . . . . . . . . . . . . . . . . . . . Command Fork 1 | . . . . . . . . . . . . . . . . . . . . . . 1 . . . . . . Patrol Navigation 1 | . . . . . . . . . . . . 1 . . . . . . . . . . . . . . . . Watcher Feeds 1 | . . . . . . . . . . . . . . . . . . . . 1 . . . . . . . . Autooverride 2 | . . . . . . . . . . 1 . . . 1 . . . . . . . . . . . . . . Autoassimilate 1 | . . . . . . . . . . . . . . . . . . 1 . . . . . . . . . . Crosswire 1 | . . . . . . . . . . . . . . . . . . . . . . . . . . . 1 . Robots Hacked 166 | . . . . . . . . . . . . . 1 . 13 6 1 15 6 7 13 21 5 24 . 4 22 28 Non-combat 11 | . . . . . . . . . . . . . 1 . 5 . . . 1 . 1 . . . . . . 3 Combat 155 | . . . . . . . . . . . . . . . 8 6 1 15 5 7 12 21 5 24 . 4 22 25 Autooverrided 61 | . . . . . . . . . . . . . . . 2 . . 5 . 4 7 6 3 12 . 1 8 13 Autoassimilated 46 | . . . . . . . . . . . . . . . . . . 2 2 3 4 5 2 7 . . 11 10 Robot Hacks Applied 71 | . . . . . . . . . . . . . 2 . 11 7 1 8 6 . 4 10 1 6 . 3 3 9 find_chute 4 | . . . . . . . . . . . . . . . 2 . . . 2 . . . . . . . . . drop_inventory 2 | . . . . . . . . . . . . . . . 2 . . . . . . . . . . . . . purge_threat 10 | . . . . . . . . . . . . . 1 . 1 . . . . . 3 . . . . . . 5 block_reporting 1 | . . . . . . . . . . . . . 1 . . . . . . . . . . . . . . . ignore_targets 7 | . . . . . . . . . . . . . . . . 7 . . . . . . . . . . . . amplify_resonance 1 | . . . . . . . . . . . . . . . . . . . . . . . . . . . . 1 go_dormant 1 | . . . . . . . . . . . . . . . . . . . . . . . . . . 1 . . overwrite_iff 1 | . . . . . . . . . . . . . . . . . . 1 . . . . . . . . . . streamctrl_high 1 | . . . . . . . . . . . . . . . 1 . . . . . . . . . . . . . formatsys_low 1 | . . . . . . . . . . . . . . . . . . . . . . . . . . . . 1 formatsys_high 42 | . . . . . . . . . . . . . . . 5 . 1 7 4 . 1 10 1 6 . 2 3 2 Relay Couplers Released 102 | . . . . . . 4 . . 4 3 . 10 . 8 7 . . 18 . 17 . 13 3 . . . 15 . Machine Destruction 91 | . . . . . . 4 . . . 3 . 10 . 8 3 . . 18 . 17 . 13 . . . . 15 . Programmers 11 | . . . . . . . . . 4 . . . . . 4 . . . . . . . 3 . . . . . Attached 46 | . . . . . . . . . . 1 . 1 1 1 3 1 . 5 3 1 4 6 1 6 . 2 7 3 Crosswired 4 | . . . . . . . . . . . . . . . . . . . . . . . . . . . 4 . Robots Rewired 9 | . . . . . . . . . . . . . . 3 . . . 1 1 . . . . 4 . . . . Allies Hacked 7 | . . . . . . . . . . . . . . . 1 . 1 . 2 . 1 . 2 . . . . . Hacks Repelled 2 | . . . . . . . . . . . . . . . . . . . . . . . 1 1 . . . . Allies | -11 -10 -10 -10 -9 -8 -8 -8 -8 -7 -7 -7 -7 -6 -6 -5 -5 -5 -5 -4 -4 -3 -3 -3 -3 -3 -2 -2 -1 -------- Run | Scr Mat Min Exi Min Mat Gar Mat Gar Fac Gar Fac Gar Fac Gar Fac Was Fac Gar Fac Gar Res Gar Res Arm Lab Res Gar Acc Total Allies 174 | . . . . 5 . . . . . . . . . 3 8 1 1 15 9 7 12 23 5 31 . 3 24 27 Largest Group 12 | . . . . 5 3 . . . . . . . . 3 4 3 1 9 9 2 3 12 10 6 . 2 6 6 Highest-Rated Group 632 | . . . . 91 55 . . . . . . . . 123 119 89 49 152 271 98 176 632 538 337 . 132 296 302 Highest-Rated Ally 69 | . . . . 31 31 . . . . . . . . 41 49 31 49 49 49 49 64 64 64 64 . 69 64 64 Total Orders 16 | . . . . . . . . . . . . . . . . . . . . . . . . . . . . 16 AID 1 | . . . . . . . . . . . . . . . . . . . . . . . . . . . . 1 EXPLORE 15 | . . . . . . . . . . . . . . . . . . . . . . . . . . . . 15 Ally Attacks 998 | . . . . 26 22 . . . . . . . . 7 63 102 . 41 94 11 22 65 67 192 . 23 126 137 Total Damage 28602 | . . . . 277 252 . . . . . . . . 353 1352 1746 . 922 2307 383 1165 2131 2779 7198 . 714 3507 3516 Kills 142 | . . . . 3 3 . . . . . . . . 3 9 2 . 6 11 3 5 12 15 33 . 3 16 18 Allies Corrupted 16 | . . . . . . . . . . . . . . . 1 2 . . . . 2 1 3 4 . 1 . 2 Allies Melted . | . . . . . . . . . . . . . . . . . . . . . . . . . . . . . Intel | -11 -10 -10 -10 -9 -8 -8 -8 -8 -7 -7 -7 -7 -6 -6 -5 -5 -5 -5 -4 -4 -3 -3 -3 -3 -3 -2 -2 -1 ------- Run | Scr Mat Min Exi Min Mat Gar Mat Gar Fac Gar Fac Gar Fac Gar Fac Was Fac Gar Fac Gar Res Gar Res Arm Lab Res Gar Acc Robot Analysis Total 2 | . 1 . . . . . . . . . . . . . . . . . . . . . . 1 . . . . Derelict Logs Recovered 2 | . . 1 . 1 . . . . . . . . . . . . . . . . . . . . . . . . Drone Launches 15 | . . . . . . . . . . . . . . . . . . . . . . . . . . . . 15 Drone Recoveries 4 | . . . . . . . . . . . . . . . . . . . . . . . . . . . . 4 Exploration | -11 -10 -10 -10 -9 -8 -8 -8 -8 -7 -7 -7 -7 -6 -6 -5 -5 -5 -5 -4 -4 -3 -3 -3 -3 -3 -2 -2 -1 ------------- Run | Scr Mat Min Exi Min Mat Gar Mat Gar Fac Gar Fac Gar Fac Gar Fac Was Fac Gar Fac Gar Res Gar Res Arm Lab Res Gar Acc Turns Passed 37798 | 112 1415 470 602 1183 1559 1112 1408 792 722 1086 659 1751 908 1721 1282 735 297 1929 1335 1475 1766 1712 1210 2835 936 249 2065 4472 Spaces Moved 15747 | 51 672 224 324 705 670 326 299 320 652 375 291 781 399 496 557 305 144 879 579 636 745 856 592 1142 11 105 888 1723 Core 5 | 3 2 . . . . . . . . . . . . . . . . . . . . . . . . . . . Treads 14251 | 48 670 224 324 280 390 326 299 308 . 253 291 781 399 496 557 305 144 879 579 636 745 856 592 1142 11 105 888 1723 Legs . | . . . . . . . . . . . . . . . . . . . . . . . . . . . . . Wheels 705 | . . . . 425 280 . . . . . . . . . . . . . . . . . . . . . . . Hover 786 | . . . . . . . . 12 652 122 . . . . . . . . . . . . . . . . . . Flight . | . . . . . . . . . . . . . . . . . . . . . . . . . . . . . Fastest Speed 50 | 50 160 160 180 130 130 186 186 142 68 68 180 180 182 182 180 180 180 180 180 180 165 172 172 177 177 177 177 147 Average Speed 172 | 153 172 179 184 157 164 186 186 186 73 150 180 182 182 182 181 180 180 180 180 181 171 172 181 182 177 177 180 175 Slowest Speed 600 | 160 600 180 200 200 230 186 186 380 290 240 180 203 182 205 182 180 180 200 180 200 205 185 185 185 177 177 185 220 Overloaded Moves . | . . . . . . . . . . . . . . . . . . . . . . . . . . . . . Propulsion Burnouts . | . . . . . . . . . . . . . . . . . . . . . . . . . . . . . Robots Hopped . | . . . . . . . . . . . . . . . . . . . . . . . . . . . . . Cave-ins Triggered 3 | . 1 . . . . . . . . . . . . . . . . . . . . . . . . . 2 . Exploration Rate (%) 46 | 5 86 56 70 99 52 50 15 40 23 58 8 65 15 49 27 98 6 85 17 70 28 78 16 75 5 5 91 56 Regions Visited 28 Branch Regions 5 Pre-discovered Areas 7 | . 2 . . 2 2 . . . 1 . . . . . . . . . . . . . . . . . . . Known Exits Taken 10 | . . . . . 1 . 1 . 1 . 1 . 1 . . . 1 . 1 . 1 . 1 . . 1 . . Unknown Exits Taken 7 | 1 1 1 1 1 . . . . . . . . . . . . . . . . . . . 1 1 . . . Scrap Searched 3 | . . 1 . 2 . . . . . . . . . . . . . . . . . . . . . . . . Spaces Dug 130 | . 56 . . . 1 . . 2 1 . . . 19 . 3 4 . . . . 2 . . 4 . 1 22 15 Terrain Destroyed 1636 | . 142 78 . 44 64 7 27 15 119 27 . 64 70 70 7 11 . 73 8 74 47 70 . 58 . 1 120 440 Melee 18 | . . . . . 1 . . . . . . . . . . . . . . . . . . 4 . 1 . 12 Projectile 109 | . . . . . 1 1 2 . 3 . . . . . 7 11 . . 8 1 4 2 . 30 . . 29 10 AOE 1509 | . 142 78 . 44 62 6 25 15 116 27 . 64 70 70 . . . 73 . 73 43 68 . 24 . . 91 418 Terrain Rammed . | . . . . . . . . . . . . . . . . . . . . . . . . . . . . . Walls Destroyed . | . . . . . . . . . . . . . . . . . . . . . . . . . . . . . Machines Disabled . | . . . . . . . . . . . . . . . . . . . . . . . . . . . . . Actions | -11 -10 -10 -10 -9 -8 -8 -8 -8 -7 -7 -7 -7 -6 -6 -5 -5 -5 -5 -4 -4 -3 -3 -3 -3 -3 -2 -2 -1 --------- Run | Scr Mat Min Exi Min Mat Gar Mat Gar Fac Gar Fac Gar Fac Gar Fac Was Fac Gar Fac Gar Res Gar Res Arm Lab Res Gar Acc Total 23962 | 72 806 265 330 754 991 815 1109 462 823 849 400 989 535 1247 774 408 170 1093 774 848 1101 1042 701 1610 928 154 1233 2679 Wait 5039 | 3 26 14 . 22 171 451 765 79 79 391 70 84 69 652 114 10 5 43 46 80 170 54 20 169 918 20 154 360 Move 15718 | 50 670 223 323 704 669 324 298 319 651 374 291 779 399 494 557 304 144 878 579 634 745 855 591 1141 10 105 885 1722 Hop . | . . . . . . . . . . . . . . . . . . . . . . . . . . . . . Pick Up 329 | 7 20 1 2 4 21 7 2 6 7 4 4 18 6 3 14 9 3 22 19 21 17 17 13 21 . 3 20 38 Fast Attach 281 | 5 5 . 1 . 20 3 8 5 8 11 10 9 7 7 8 6 2 7 18 6 19 7 18 30 . 1 13 47 Attach 191 | 1 3 . 1 3 5 3 . 3 7 4 1 6 4 5 4 1 3 10 11 11 10 6 4 14 . 4 10 57 Detach 43 | . 1 . . . 4 1 . 2 3 . 1 1 1 1 2 1 . 2 1 . 1 . 2 3 . . 3 13 Swap 222 | 1 3 1 1 1 6 3 3 4 8 2 4 5 6 2 10 3 1 17 16 9 14 12 9 21 . 5 10 45 Drop 421 | . 9 1 2 . 27 10 9 11 9 8 8 14 11 5 16 22 5 11 25 12 36 23 28 37 . . 23 59 Fire 1446 | 5 68 23 . 16 66 13 24 29 38 25 11 60 28 37 48 52 7 82 59 61 81 54 13 133 . 15 102 296 Melee 55 | . . . . . 1 . . . . . . . . . . . . . . . . . . 15 . 1 . 38 Ram 3 | . . 1 . 2 . . . . . . . . . . . . . . . . . . . . . . . . Kick . | . . . . . . . . . . . . . . . . . . . . . . . . . . . . . Crush 18 | . . 1 . 2 1 . . . . . . . 4 . 1 . . 1 . . 2 . 3 . . . . 3 Escape Stasis 139 | . 1 . . . . . . 4 13 30 . 13 . 12 . . . 20 . 14 6 12 . 2 . . 12 . Rewire 57 | . . . . . . . . . . . . . . 29 . . . . . . . 2 . 24 . . 1 1 Trap . | . . . . . . . . . . . . . . . . . . . . . . . . . . . . . Miscellaneous . | . . . . . . . . . . . . . . . . . . . . . . . . . . . . . Route ------- -11/Scrapyard -10/Materials (discovered 4 exits: [*Mat x3] / *Min) -10/Mines (discovered 2 exits: [*Mat] / *Exi) -10/Exiles (discovered 2 exits: [*Min x2]) -9/Mines (discovered 2 exits: *Mat x2) -8/Materials (discovered 3 exits: *Fac / [*Sto] / Gar) -8/Garrison -8/Materials -8/Garrison (discovered 2 exits: *Fac x2) -7/Factory -7/Garrison (discovered 2 exits: *Fac x2) -7/Factory (discovered 2 exits: *Fac / Gar) -7/Garrison (discovered 3 exits: *Fac x3) -6/Factory -6/Garrison (discovered 2 exits: *Fac x2) -5/Factory -5/Waste -5/Factory (discovered 2 exits: [*Upp] / Gar) -5/Garrison (discovered 2 exits: *Fac x2) -4/Factory -4/Garrison (discovered 3 exits: *Res x3) -3/Research (discovered 4 exits: *Res / *Arm / *Tes / Gar) -3/Garrison (discovered 3 exits: *Res x3) -3/Research (discovered 4 exits: *Res / *Arm / Tes x2) -3/Armory (discovered 2 exits: *Res / [*Lab]) -3/Lab -2/Research -2/Garrison (discovered 3 exits: *Acc x3) -1/Access To Epsilon Eridani History --------- Turn | Location | Event 8 | -11/Scrapyard | Discovered new exit (range 16) 113 | -11/Scrapyard | Entered Materials 265 | -10/Materials | Met 8R-AWN 296 | -10/Materials | Discovered new exit (range 15) 317 | -10/Materials | Build established: Mutant 655 | -10/Materials | Discovered new exit (range 16) 1054 | -10/Materials | Discovered new exit (range 10) 1200 | -10/Materials | Discovered new exit (range 11) 1205 | -10/Materials | Crushed by falling debris 1206 | -10/Materials | System corruption reached 10% 1236 | -10/Materials | Lost 4 parts (1p2n1w) 1528 | -10/Materials | Entered Mines 1529 | -10/Mines | Followed 8R-AWN into the Mines 1734 | -10/Mines | Core integrity fell below 50% 1908 | -10/Mines | Discovered new exit (range 12) 1949 | -10/Mines | Learned Materials trap positions 1970 | -10/Mines | Assembled infested the area 1989 | -10/Mines | Discovered new exit (range 6) 1998 | -10/Mines | Entered Exiles 2022 | -10/Exiles | Lost 4 parts (1p1n2w) 2024 | -10/Exiles | Discovered new exit (range 15) 2047 | -10/Exiles | Welcomed by 8R-AWN 2072 | -10/Exiles | Met EX-HEX 2126 | -10/Exiles | Met EX-BIN 2151 | -10/Exiles | Aligned with FarCom system 2153 | -10/Exiles | Given EX-Vault access code 2204 | -10/Exiles | Opened EX-Vault 2217 | -10/Exiles | Found Latent Energy Streamer 2254 | -10/Exiles | Warned to stay clear of 0b10 Research branches 2306 | -10/Exiles | Met EX-DEC 2572 | -10/Exiles | Discovered new exit (range 14) 2600 | -10/Exiles | Left Exiles lab with Latent Energy Streamer 2600 | -10/Exiles | Entered Mines 2686 | -9/Mines | Discovered new exit (range 15) 2814 | -9/Mines | Assisted by bots powering up and referring to "LRC-V3" 2962 | -9/Mines | Learned location of Zion (-6) 3599 | -9/Mines | Discovered new exit (range 9) 3670 | -9/Mines | Learned location of Storage (-8) 3783 | -9/Mines | Entered Materials 3783 | -8/Materials | Accompanied by 3 allies 3783 | -8/Materials | Evolved 4 slots: Propulsion x1, Utility x2, Weapon x1 3784 | -8/Materials | Loaded intel: 18 trap records 3788 | -8/Materials | Led the pair of lost Derelicts to an unsafe place 4118 | -8/Materials | Lost 3 parts (3w) 4915 | -8/Materials | Discovered new exit (range 11) 4979 | -8/Materials | Discovered new exit (range 16) 5188 | -8/Materials | Build established: Hauler-Skirmisher 5340 | -8/Materials | Identified exit to Garrison 5342 | -8/Materials | Entered Garrison 5352 | -8/Garrison | Installed Relay Interface Framework 5530 | -8/Garrison | Build established: Hauler-Mutant 5551 | -8/Garrison | Triggered checkpoint 5984 | -8/Garrison | Triggered checkpoint 6034 | -8/Garrison | Garrison Relay disabled 6403 | -8/Garrison | Discovered new exit (range 15) 6454 | -8/Garrison | Entered Materials 6521 | -8/Materials | Repaired Rocket Launcher 7677 | -8/Materials | Build established: Hauler-Skirmisher 7860 | -8/Materials | Identified exit to Garrison 7862 | -8/Materials | Entered Garrison 8136 | -8/Garrison | Triggered checkpoint 8217 | -8/Garrison | Discovered new exit (range 15) 8331 | -8/Garrison | Triggered checkpoint 8367 | -8/Garrison | Build established: Hauler-Mutant 8417 | -8/Garrison | Discovered new exit (range 14) 8456 | -8/Garrison | Expanded RIF knowledge: Hotswap 8654 | -8/Garrison | Entered Factory 8654 | -7/Factory | Evolved 2 slots: Propulsion x1, Utility x1 8890 | -7/Factory | Build established: Scavenger-Mutant 8898 | -7/Factory | Repaired Cmb. Airjet 9375 | -7/Factory | Identified exit to Garrison 9376 | -7/Factory | Entered Garrison 9468 | -7/Garrison | Triggered checkpoint 9545 | -7/Garrison | Core integrity fell below 50% 9584 | -7/Garrison | Lost 7 parts (2p1u4w) 9666 | -7/Garrison | Triggered checkpoint 9677 | -7/Garrison | Discovered new exit (range 10) 9849 | -7/Garrison | Discovered new exit (range 9) 9860 | -7/Garrison | Build established: Scavenger-Skirmisher 9876 | -7/Garrison | Expanded RIF knowledge: Autooverride 9960 | -7/Garrison | Triggered checkpoint 10027 | -7/Garrison | Garrison Relay disabled 10325 | -7/Garrison | Build established: Scavenger-Mutant 10462 | -7/Garrison | Entered Factory 10838 | -7/Factory | Discovered new exit (range 16) 11052 | -7/Factory | Garrison activated, responded to threat 11121 | -7/Factory | Identified exit to Garrison 11121 | -7/Factory | Entered Garrison 11270 | -7/Garrison | Build established: Scavenger-Skirmisher 11406 | -7/Garrison | Destroyed 9 combat bots 11411 | -7/Garrison | Lost 4 parts (2n2w) 11438 | -7/Garrison | Triggered checkpoint 11510 | -7/Garrison | Discovered new exit (range 15) 11814 | -7/Garrison | Triggered checkpoint 11918 | -7/Garrison | Triggered checkpoint 11925 | -7/Garrison | Discovered new exit (range 12) 11983 | -7/Garrison | Build established: Bothacker-Skirmisher 12092 | -7/Garrison | Triggered checkpoint 12188 | -7/Garrison | Discovered new exit (range 15) 12249 | -7/Garrison | Expanded RIF knowledge: Watcher Feeds 12352 | -7/Garrison | Triggered checkpoint 12380 | -7/Garrison | Garrison Relay disabled 12665 | -7/Garrison | Build established: Botlord-Mutant 12698 | -7/Garrison | Triggered checkpoint 12718 | -7/Garrison | Garrison Relay disabled 12872 | -7/Garrison | Entered Factory 12872 | -6/Factory | Evolved 2 slots: Utility x2 13572 | -6/Factory | First assault squad dispatched 13676 | -6/Factory | Repaired Med. Reactive Plating 13780 | -6/Factory | Identified exit to Garrison 13780 | -6/Factory | Entered Garrison 13790 | -6/Garrison | Expanded RIF knowledge: Autooverride 13984 | -6/Garrison | Triggered checkpoint 13990 | -6/Garrison | Triggered checkpoint 14000 | -6/Garrison | Triggered checkpoint 14710 | -6/Garrison | Lost 3 parts (1n2w) 14782 | -6/Garrison | Triggered checkpoint 14861 | -6/Garrison | Discovered new exit (range 9) 14896 | -6/Garrison | Triggered checkpoint 14921 | -6/Garrison | Garrison Relay disabled 15302 | -6/Garrison | Triggered checkpoint 15302 | -6/Garrison | Triggered checkpoint 15310 | -6/Garrison | Garrison Relay disabled 15458 | -6/Garrison | Discovered new exit (range 8) 15501 | -6/Garrison | Entered Factory 15501 | -5/Factory | Accompanied by 2 allies 15501 | -5/Factory | Evolved 2 slots: Utility x2 15769 | -5/Factory | Discovered new exit (range 19) 15798 | -5/Factory | Identified exit to Factory 16488 | -5/Factory | Fabricated Hcp. Storage Unit (x1) 16549 | -5/Factory | Fabricated Hcp. Storage Unit (x1) 16783 | -5/Factory | Sucked down chute 16783 | -5/Factory | Entered Waste 16784 | -5/Waste | Met a frightened Derelict 16790 | -5/Waste | 2 allies followed down the chute 16798 | -5/Waste | EMP discharged 16801 | -5/Waste | Found Prototype Device 16801 | -5/Waste | Identified Exp. Force Field 16825 | -5/Waste | Spotted C-40 Crusher 16836 | -5/Waste | Destroyed C-40 Crusher 16868 | -5/Waste | Spotted C-40 Crusher 16895 | -5/Waste | Spotted C-40 Crusher 16895 | -5/Waste | Spotted C-40 Crusher 16898 | -5/Waste | EMP discharged 16898 | -5/Waste | System corruption reached 10% 16898 | -5/Waste | Allies destroyed C-40 Crusher 16906 | -5/Waste | Spotted C-40 Crusher 16951 | -5/Waste | Destroyed C-40 Crusher 16959 | -5/Waste | Found Damper Plating 16992 | -5/Waste | Allies destroyed C-40 Crusher 16998 | -5/Waste | EMP discharged 17008 | -5/Waste | Destroyed C-40 Crusher 17098 | -5/Waste | EMP discharged 17149 | -5/Waste | Spotted C-40 Crusher 17198 | -5/Waste | EMP discharged 17232 | -5/Waste | Discovered new exit (range 16) 17298 | -5/Waste | EMP discharged 17342 | -5/Waste | Destroyed C-40 Crusher 17398 | -5/Waste | EMP discharged 17498 | -5/Waste | EMP discharged 17518 | -5/Waste | Entered Factory 17674 | -5/Factory | Discovered new exit (range 27) 17815 | -5/Factory | Identified exit to Garrison 17815 | -5/Factory | Entered Garrison 18024 | -5/Garrison | Triggered checkpoint 18024 | -5/Garrison | Triggered checkpoint 18035 | -5/Garrison | Spotted B-75 Beast 18171 | -5/Garrison | Build established: Bothacker-Mutant 18227 | -5/Garrison | Garrison Relay disabled 18476 | -5/Garrison | Destroyed B-75 Beast 18724 | -5/Garrison | Triggered checkpoint 18830 | -5/Garrison | Discovered exit to Factory (range 14) 18969 | -5/Garrison | Discovered exit to Factory (range 9) 18999 | -5/Garrison | Expanded RIF knowledge: Autoassimilate 19040 | -5/Garrison | Triggered checkpoint 19103 | -5/Garrison | Garrison Relay disabled 19284 | -5/Garrison | Triggered checkpoint 19332 | -5/Garrison | Garrison Relay disabled 19548 | -5/Garrison | Triggered checkpoint 19587 | -5/Garrison | Garrison Relay disabled 19610 | -5/Garrison | Triggered checkpoint 19631 | -5/Garrison | Build established: Botlord-Mutant 19744 | -5/Garrison | Entered Factory 19744 | -4/Factory | Accompanied by 8 allies 19744 | -4/Factory | Evolved 2 slots: Utility x2 20046 | -4/Factory | Found Prototype Processor 20046 | -4/Factory | Identified Exp. Signal Interpreter 20353 | -4/Factory | P-70 Sage assimilated allied Sentinel 7b 20625 | -4/Factory | Garrison activated, responded to threat 20855 | -4/Factory | Garrison activated, responded to threat 21078 | -4/Factory | Identified exit to Garrison 21079 | -4/Factory | Entered Garrison 21079 | -4/Garrison | Accompanied by 1 ally 21124 | -4/Garrison | Triggered checkpoint 21159 | -4/Garrison | Garrison Relay disabled 21245 | -4/Garrison | Triggered checkpoint 21317 | -4/Garrison | Spotted B-86 Titan 21371 | -4/Garrison | Destroyed B-86 Titan 21396 | -4/Garrison | Lost 5 parts (1n2u2w) 21723 | -4/Garrison | Discovered new exit (range 14) 21759 | -4/Garrison | Expanded RIF knowledge: Patrol Navigation 21837 | -4/Garrison | Triggered checkpoint 21866 | -4/Garrison | Garrison Relay disabled 22032 | -4/Garrison | Triggered checkpoint 22123 | -4/Garrison | Lost 4 parts (1p1n1u1w) 22185 | -4/Garrison | Discovered new exit (range 9) 22206 | -4/Garrison | Triggered checkpoint 22252 | -4/Garrison | Garrison Relay disabled 22397 | -4/Garrison | Discovered new exit (range 9) 22432 | -4/Garrison | Triggered checkpoint 22480 | -4/Garrison | Garrison Relay disabled 22554 | -4/Garrison | Entered Research 22554 | -3/Research | Evolved 2 slots: Utility x2 22792 | -3/Research | Discovered new exit (range 8) 22953 | -3/Research | Spotted B-86 Titan 23130 | -3/Research | Discovered new exit (range 10) 23336 | -3/Research | Discovered new exit (range 5) 23553 | -3/Research | Found Prototype Processor 23553 | -3/Research | Identified Spectral Analyzer 23855 | -3/Research | Build established: Botlord-Skirmisher 24082 | -3/Research | Found Antimissile System 24237 | -3/Research | Garrison activated, responded to threat 24320 | -3/Research | Identified exit to Garrison 24320 | -3/Research | Entered Garrison 24320 | -3/Garrison | Accompanied by 1 ally 24346 | -3/Garrison | Spotted B-86 Titan 24350 | -3/Garrison | Triggered checkpoint 24367 | -3/Garrison | Destroyed B-86 Titan 24450 | -3/Garrison | Garrison Relay disabled 24516 | -3/Garrison | Build established: Botlord-Mutant 24708 | -3/Garrison | Triggered checkpoint 24712 | -3/Garrison | Triggered checkpoint 24749 | -3/Garrison | P-80 Master assimilated allied Veteran 8e 24853 | -3/Garrison | Discovered new exit (range 12) 24888 | -3/Garrison | Expanded RIF knowledge: Command Fork 24972 | -3/Garrison | Garrison Relay disabled 25020 | -3/Garrison | Triggered checkpoint 25088 | -3/Garrison | Triggered checkpoint 25116 | -3/Garrison | Triggered checkpoint 25212 | -3/Garrison | Triggered checkpoint 25277 | -3/Garrison | Discovered new exit (range 10) 25584 | -3/Garrison | Triggered checkpoint 25908 | -3/Garrison | Garrison Relay disabled 25947 | -3/Garrison | Discovered new exit (range 14) 26032 | -3/Garrison | Entered Research 26032 | -3/Research | Accompanied by 10 allies 26132 | -3/Research | Identified exit to Armory 26132 | -3/Research | Identified exit to Testing 26217 | -3/Research | Found Prototype Slashing Weapon 26217 | -3/Research | Identified Nanosword 26223 | -3/Research | Found Nanosword 26245 | -3/Research | Found Nanosword 26247 | -3/Research | Found Nanosword 26250 | -3/Research | Found Nanosword 26253 | -3/Research | Found Nanosword 26422 | -3/Research | Discovered new exit (range 10) 26782 | -3/Research | System corruption reached 10% 26782 | -3/Research | P-80 Master assimilated allied Veteran 8k 26914 | -3/Research | Found Prototype Launcher 26914 | -3/Research | Identified Hellfire Missile Launcher 27068 | -3/Research | Found Enh. Force Lance 27242 | -3/Research | Entered Armory 27242 | -3/Armory | Accompanied by 6 allies 27313 | -3/Armory | Found Prototype Launcher 27313 | -3/Armory | Identified Com. Tesla Bomb Launcher 27321 | -3/Armory | Found Com. Tesla Bomb Launcher 27324 | -3/Armory | Found Com. Tesla Bomb Launcher 28048 | -3/Armory | Fabricated Exp. Force Field? 28091 | -3/Armory | P-80 Master assimilated allied Warden 8j 28364 | -3/Armory | Build established: Botlord-Skirmisher 28620 | -3/Armory | Discovered new exit (range 11) 28713 | -3/Armory | Build established: Botlord-Mutant 29128 | -3/Armory | Fabricated Launcher Loader (x2) 29184 | -3/Armory | Fabricated Hcp. Storage Unit (x1) 29273 | -3/Armory | Found Adv. Force Booster 29525 | -3/Armory | First assault squad dispatched 29769 | -3/Armory | Discovered new exit (range 3) 30077 | -3/Armory | Entered Lab 30077 | -3/Lab | Discovered new exit (range 9) 30376 | -3/Lab | Build established: Botlord-Tank 31013 | -3/Lab | Entered Research 31013 | -2/Research | Evolved 2 slots: Utility x2 31115 | -2/Research | Garrison activated, responded to threat 31262 | -2/Research | Identified exit to Garrison 31262 | -2/Research | Entered Garrison 31388 | -2/Garrison | Triggered checkpoint 31418 | -2/Garrison | Garrison Relay disabled 31703 | -2/Garrison | Build established: Botlord-Mutant 31710 | -2/Garrison | Crushed by falling debris 31714 | -2/Garrison | Crushed by falling debris 31715 | -2/Garrison | System corruption reached 10% 31745 | -2/Garrison | Lost 4 parts (3u1w) 31761 | -2/Garrison | Discovered new exit (range 8) 31787 | -2/Garrison | Spotted B-90 Cyclops 31813 | -2/Garrison | Destroyed B-90 Cyclops 31844 | -2/Garrison | Found Quantum Capacitor 31927 | -2/Garrison | Garrison Relay disabled 32020 | -2/Garrison | Triggered checkpoint 32090 | -2/Garrison | Discovered new exit (range 10) 32122 | -2/Garrison | Expanded RIF knowledge: Crosswire 32158 | -2/Garrison | Triggered checkpoint 32226 | -2/Garrison | Garrison Relay disabled 32326 | -2/Garrison | Triggered checkpoint 32340 | -2/Garrison | Triggered checkpoint 32440 | -2/Garrison | Spotted B-90 Cyclops 32468 | -2/Garrison | Allies destroyed B-90 Cyclops 32631 | -2/Garrison | Discovered new exit (range 14) 32666 | -2/Garrison | Triggered checkpoint 32974 | -2/Garrison | Triggered checkpoint 33123 | -2/Garrison | Spotted B-90 Cyclops 33139 | -2/Garrison | Allies destroyed B-90 Cyclops 33327 | -2/Garrison | Entered Access 33327 | -1/Access | Accompanied by 4 allies 33327 | -1/Access | Evolved 2 slots: Power x1, Utility x1 33523 | -1/Access | Garrison activated, responded to threat 33879 | -1/Access | System corruption reached 10% 33907 | -1/Access | Fabricated Adv. Heavy Siege Treads (x2) 35117 | -1/Access | System corruption reached 30% 35141 | -1/Access | Garrison activated, responded to threat 35827 | -1/Access | First assault squad dispatched 36739 | -1/Access | P-80 Master assimilated allied Engineer 10a 37204 | -1/Access | Found Prototype Launcher 37204 | -1/Access | Identified Adv. Micro-nuke Launcher 37456 | -1/Access | Discovered new exit (range 4) 37545 | -1/Access | Lost 5 parts (1p3u1w) 37611 | -1/Access | Spotted B-99 Colossus 37702 | -1/Access | Garrison activated, responded to threat 37725 | -1/Access | Lost 15 parts (3p3n4u5w) 37739 | -1/Access | Destroyed 11 combat bots 37759 | -1/Access | Spotted B-99 Colossus 37792 | -1/Access | Core integrity fell below 50% 37799 | *** | Escaped! Last Messages --------------- 37784_ Penetrated by Slug. 37784_ Slug penetrates Reinforced Barrier. 37787_ Slug penetrates Sealed Heavy Doors. 37787_ K-01 Serf collects debris. 37788_ The unstable cave ceiling collapses. 37789_ Exp. Biometal Heavy Treads destroyed. 37789_ Penetrated by Slug. 37790_ K-01 Serf collects debris. 37792_ Penetrated by Slug. 37792_ Imp. Energy Well destroyed. 37793_ System corrupted: Lrn. Missile Launcher targeting data glitched. 37795_ B-99 Colossus exits siege mode. 37795_ Hcp. Storage Unit destroyed. 37795_ Penetrated by Slug. 37795_ System corrupted: Lrn. Missile Launcher targeting data glitched. 37797_ System corrupted: Component data lost. 37797_ Lrn. Missile Launcher destroyed. 37798_ The unstable cave ceiling collapses. 37798_ Penetrated by Slug. 37799_ B-99 Colossus exits siege mode. Map ----- +----------------------------------------------------+ | + = [**%="#??????????????????????????????????????? | | """" "!###########??????????????????????????????? | | # ### #??????????????????????????????? | | #######?# #??????????????????????????????? | | #???????# #??????????????????????????????? | | #???????# #??????????????????????????????? | | #???????# = #??????????????????????????????? | | #???????# #???????##########?????????????? | | #???????# ######### # # #?????????????? | | #?????? #=# ##?? #????????? | | ##### # # +###%#""; # ## ## #????????? | | !!!= %=i #????????? | | !]% = = =*%g +????????? | | ##### # # ####+##### =% ##????????????? | | ?????# " % # =* #?????????????? | | ?????#### "%" # # ##????????????? | | ?????# % # # #????????????? | | ??????# # # # * ##????????????? | | ??????# / #### = / ;####?????????????? | | ??????# %# %# #????????????????? | | ???????## #%=% #????????????????? | | ???????# ##%#== ##????????????????? | | ????????# #=##* = #?????????????????? | | ????????### # #%##[/= #?????????????????? | | ??????????##### #== * #?????????????????? | | ?????????????### #= @" #?????????????????? | | ???????????????# # "" #?????????????????? | | ???????????????## ### #?????????????????? | | ????????????????##??# #?????????????????? | | ????????????????????# #?????????????????? | | ????????????????????# """#?????????????????? | | ????????????????????# BB ""????????????????????? | | ????????????????????# BB ""?????????????????????? | | ????????????????????# "??????????????????????? | | ????????????????????# BB ??????????????????????? | | ????????????????????# BB ??????????????????????? | | ????????????????????# ??????????????????????? | | ????????????????????# ??????????????????????? | | ????????????????????# ??????????????????????? | | ????????????????????? ??????????????????????? | | ??????????????????????? u%???????????????????????? | | ?????????????????????????????????????????????????? | | ?????????????????????????????????????????????????? | | ?????????????????????????????????????????????????? | | ?????????????????????????????????????????????????? | | ?????????????????????????????????????????????????? | | ?????????????????????????????????????????????????? | | ?????????????????????????????????????????????????? | | ?????????????????????????????????????????????????? | | ?????????????????????????????????????????????????? | +----------------------------------------------------+ Best States ------------- Heat Dissipation 99 Coolant Potential 100 Energy Generation 54 Energy Capacity 1260 Matter Stores 300 Matter Capacity 300 Sight Range 23 Terrain Scan Density 85 ECM Strength 3 Jamming Range 12 Cloak Strength 3 Power Amplification 40 Additional Mass Support 16 Armor Coverage 2400 Resistance: KI 30 Resistance: TH 15 Resistance: EX 50 Resistance: EM 90 Core Shielding 20 Utility Shielding 66 Weapon Shielding 66 Reclamation Efficiency 15 Weapon Cycling 25 Evasion (%) 51 Targeting Accuracy 8 Launcher Accuracy 20 Armor Integrity Analysis 66 Recoil Reduction 4 Force Boost 5 Salvage Targeting 3 Stasis Canceling 2 Offensive Hacking 40 Defensive Hacking 14 Relay Coupler Types 179 Relay Coupler Value 6 Item Schematics ----------------- Hcp. Storage Unit | -7/Factory | Hacked Launcher Loader | -6/Factory | Hacked Med. Reactive Plating | -5/Factory | Scanalyzed Exp. Force Field | -3/Research | Scanalyzed Robot Schematics ------------------ None Fabricated ------------ Hcp. Storage Unit | x1 | -5/Factory Hcp. Storage Unit | x1 | -5/Factory Exp. Force Field | x1 | -3/Armory Launcher Loader | x2 | -3/Armory Hcp. Storage Unit | x1 | -3/Armory Adv. Heavy Siege Treads | x2 | -1/Access | Preloaded Alien Tech Used ----------------- None Achievements -------------- Beloved Release The Drones! Shocking Conclusion Challenges ------------ None Game ------ Seed WarpDispersionAutohacker Manual? 0 Play Time 07:20:55 Cumulative 144.5 hours Start 2021.06.27 @ 09:23:01 End 2021.06.27 @ 17:58:03 Sessions 1 Manual Loads 0 Difficulty Rogue Special Mode None Game No. 45 Rogue 45 Adventurer 0 Explorer 0 Win Type 0 Total 2 Types 2/0/0/0/0/0/0/0/0 Lore% 63 Gallery% 72 Achievement% 56 Wizard Run 0 Options --------- ASCII 0 Keyboard 0 Movement Numpad Keybinds 0 Fullscreen 1 Font 18/SmallcapsGlow Map View 76x50 Tactical HUD 1 Map Filters NONE Filters NONE Steam 1 RUN: efb7bcfb-66ce-4469-810b-a5438a2a4731